fUSD/lending_fUSD_20260122
["ID","MTS","AMOUNT","RATE_DAILY","PERIOD"]
[403041768,1769094706148,-500.0,0.00042465,60]
[403041769,1769094706158,-500.0,0.00042465,60]
[403041770,1769094706168,-500.0,0.00042465,60]
[403041771,1769094706177,-500.0,0.00042465,60]
[403041772,1769094706187,-500.0,0.00042465,60]
[403041773,1769094706197,-533.2,0.00042465,60]
[403041774,1769094706207,-500.0,0.00042465,60]
[403041775,1769094706216,-500.0,0.00042465,60]
[403041776,1769094706226,-500.0,0.00042465,60]
[403041777,1769094706235,-500.0,0.00042465,60]
[403041778,1769094706244,-500.0,0.00042465,60]
[403041779,1769094706253,-707.15,0.00042465,60]
[403041780,1769094706263,-500.0,0.00042465,60]
[403041781,1769094706272,-500.0,0.00042465,60]
[403041782,1769094706282,-500.0,0.00042465,60]
[403041783,1769094706291,-500.0,0.00042465,60]
[403041784,1769094706300,-500.0,0.00042465,60]
[403041785,1769094706309,-500.0,0.00042465,60]
[403041786,1769094706320,-500.0,0.00042465,60]
[403041787,1769094706330,-500.0,0.00042465,60]
[403041788,1769094706339,-500.0,0.00042465,60]
[403041789,1769094706348,-500.0,0.00042465,60]
[403041790,1769094706357,-500.0,0.00042465,60]
[403041791,1769094706367,-500.0,0.00042465,60]
[403041792,1769094706376,-500.0,0.00042465,60]
[403041793,1769094706386,-393.73736782,0.00042465,60]
[403041794,1769094706396,-500.0,0.00042465,60]
[403041795,1769094706405,-500.0,0.00042465,60]
[403041796,1769094706415,-500.0,0.00042465,60]
[403041797,1769094706424,-500.0,0.00042465,60]
[403041798,1769094706433,-500.0,0.00042465,60]
[403041799,1769094706443,-500.0,0.00042465,60]
[403041800,1769094706453,-500.0,0.00042465,60]
[403041801,1769094706462,-500.0,0.00042465,60]
[403041802,1769094706471,-500.0,0.00042465,60]
[403041803,1769094706481,-500.0,0.00042465,60]
[403041804,1769094706490,-500.0,0.00042465,60]
[403041805,1769094706499,-500.0,0.00042465,60]
[403041806,1769094706508,-556.6,0.00042465,60]
[403041807,1769094706517,-500.0,0.00042465,60]
[403041808,1769094706526,-500.0,0.00042465,60]
[403041809,1769094706535,-500.0,0.00042465,60]
[403041810,1769094706544,-603.34,0.00042465,60]
[403041811,1769094706553,-500.0,0.00042465,45]
[403041812,1769094706563,-500.0,0.00042465,60]
[403041813,1769094706572,-500.0,0.00042465,60]
[403041814,1769094706582,-500.0,0.00042465,60]
[403041815,1769094706591,-500.0,0.00042465,60]
[403041816,1769094706600,-500.0,0.00042465,60]
[403041817,1769094706609,-500.0,0.00042465,60]
[403041818,1769094706618,-583.08,0.00042465,60]
[403041819,1769094706628,-500.0,0.00042465,30]
[403041820,1769094706637,-500.0,0.00042465,60]
[403041821,1769094706647,-500.0,0.00042465,60]
[403041822,1769094706656,-500.0,0.00042465,60]
[403041823,1769094706665,-500.0,0.00042465,60]
[403041824,1769094706675,-500.0,0.00042465,60]
[403041825,1769094706685,-500.0,0.00042465,60]
[403041826,1769094706694,-500.0,0.00042465,60]
[403041827,1769094706704,-575.43687784,0.00042465,60]
[403041828,1769094706713,-189.19013788,0.00042465,60]
[403041829,1769094706722,-500.0,0.00042465,60]
[403041830,1769094706731,-500.0,0.00042465,60]
[403041831,1769094706740,-500.0,0.00042465,60]
[403041832,1769094706750,-500.0,0.00042465,60]
[403041833,1769094706759,-500.0,0.00042465,60]
[403041834,1769094706769,-500.0,0.00042465,60]
[403041835,1769094706779,-500.0,0.00042465,60]
[403041836,1769094706788,-500.0,0.00042465,60]
[403041837,1769094706798,-500.0,0.00042465,60]
[403041838,1769094706807,-526.65,0.00042465,60]
[403041839,1769094706816,-500.0,0.00042465,60]
[403041840,1769094706826,-512.38594627,0.00042465,60]
[403041841,1769094706837,-500.0,0.00042465,60]
[403041842,1769094706846,-500.0,0.00042465,60]
[403041843,1769094706856,-500.0,0.00042465,60]
[403041844,1769094706865,-500.0,0.00042465,60]
[403041845,1769094706874,-500.0,0.00042465,60]
[403041846,1769094706884,-500.0,0.00042465,60]
[403041847,1769094706894,-500.0,0.00042465,60]
[403041848,1769094706909,-540.13,0.00042465,30]
[403041849,1769094706919,-500.0,0.00042465,60]
[403041850,1769094706928,-500.0,0.00042465,60]
[403041851,1769094706939,-432.56739422,0.00042465,60]
[403041852,1769094706948,-500.0,0.00042465,60]
[403041853,1769094706958,-500.0,0.00042465,60]
[403041854,1769094706969,-500.0,0.00042465,60]
[403041855,1769094706979,-500.0,0.00042465,60]
[403041856,1769094706988,-519.37,0.00042465,60]
[403041857,1769094707000,-448.75703056,0.00042465,60]
[403041858,1769094707010,-500.0,0.00042465,60]
[403041859,1769094707019,-553.39,0.00042465,60]
[403041860,1769094707029,-592.57,0.00042465,60]
[403041861,1769094707039,-45.36167314,0.00042465,60]
[403041862,1769094707640,500.0,0.00017454,2]
[403041863,1769094707696,500.0,0.00017454,2]
[403041864,1769094707742,439.59372964,0.00017454,2]
[403041865,1769094707862,-212.59791014,0.00028767,2]
[403041866,1769094707871,-500.0,0.00035616,7]
[403041867,1769094707880,-500.0,0.00035616,7]
[403041868,1769094707889,-534.42943587,0.00035616,7]
[403041869,1769094707902,-500.0,0.00035616,7]
[403041870,1769094707911,-260.22689207,0.00035616,7]
[403041871,1769094707920,-358.0,0.00041095,60]
[403041872,1769094707930,-151.0,0.00041643,120]
[403041873,1769094707941,-151.0,0.00041917,120]
[403041874,1769094707951,-151.0,0.000422,120]
[403041875,1769094707960,-454.63832686,0.00042465,60]
[403041876,1769094707970,-500.0,0.00042465,60]
[403041877,1769094707980,-500.0,0.00042465,60]
[403041878,1769094707989,-500.0,0.00042465,60]
[403041879,1769094707998,-547.98,0.00042465,60]
[403041880,1769094708007,-421.94831831,0.00042465,60]
[403041928,1769095533122,-600.0,0.00016312,2]
[403041929,1769095533145,-151.0,0.00016312,2]
[403041930,1769095533168,-287.0,0.00016322,2]
[403041931,1769095533194,-151.0,0.00016322,2]
[403041932,1769095533216,-151.0,0.0001633,2]
[403041933,1769095533240,-150.00334063,0.00016474,2]
[403041934,1769095533261,-546.92858209,0.00016508,2]
[403041936,1769095623646,262.55520896,0.000153,2]
[403041944,1769095720747,56041.75701047,0.00016,4]
[403041945,1769095721511,9737.45479104,0.00015,2]
[403041946,1769095721541,6360.27355745,0.00015,2]
[403041963,1769095832055,-151.0,0.00016335,2]
[403041964,1769095832065,-320.0,0.0001643,2]
[403041965,1769095832075,-150.00561641,0.00016493,2]
[403041966,1769095832084,-453.07141791,0.00016508,2]
[403041967,1769095832094,-150.0,0.00016528,2]
[403041968,1769095832103,-186.06816928,0.00016543,2]
[403041969,1769095832167,-13.93183072,0.00016543,2]
[403041970,1769095832177,-1500.0,0.00016571,2]
[403041971,1769095832187,-271.86988534,0.00016796,2]
[403041972,1769095832196,-406.701089,0.00016796,2]
[403041973,1769095832205,-550.2717,0.00016796,2]
[403041974,1769095832214,-1778.32,0.00016946,2]
[403041975,1769095832223,-166.66,0.00017144,2]
[403041976,1769095832233,-1290.21,0.00017205,2]
[403041977,1769095832243,-1290.21,0.00017205,2]
[403041978,1769095832253,-457.0,0.00017209,2]
[403041979,1769095832263,-300.0,0.00017214,2]
[403041980,1769095832273,-1200.0,0.00017214,2]
[403041981,1769095832284,-300.0,0.00017214,2]
[403041983,1769095832294,-121483.83819178,0.00017215,2]
[403041986,1769095832314,-300.01999254,0.00017215,2]
[403041988,1769095832326,-620.98453335,0.00017215,2]
[403041993,1769095838320,-151.0,0.00016334,2]
[403041994,1769095838330,-1579.10475087,0.00017215,2]
[403041995,1769095838342,-2788.83008274,0.00017215,2]
[403041996,1769095838354,-751.04104381,0.00017215,2]
[403041997,1769095838430,-17757.60000013,0.00017215,2]
[403041998,1769095838442,-2434.24970126,0.00017215,2]
[403041999,1769095838532,-2383.00179489,0.00017215,2]
[403042000,1769095838548,-1115.12663144,0.00017215,2]
[403042001,1769095838564,-2940.50259616,0.00017215,2]
[403042002,1769095838575,-500.78571235,0.00017215,2]
[403042167,1769095840224,-845344.91496868,0.00017215,2]
[403042169,1769095840233,-457.0,0.00017296,2]
[403042171,1769095840242,-835.07,0.00017296,2]
[403042173,1769095840252,-150.99,0.00017296,2]
[403042175,1769095840262,-9999.99,0.00017314,2]
[403042177,1769095840272,-457.0,0.00017315,2]
[403042179,1769095840282,-21548.51,0.00017315,2]
[403042181,1769095840292,-6198.45322297,0.00017355,2]
[403042183,1769095840303,-457.0,0.0001741,2]
[403042185,1769095840313,-150.99,0.0001741,2]
[403042187,1769095840323,-258.24968948,0.00017419,2]
[403042189,1769095840334,-334.64,0.00017445,3]
[403042191,1769095840343,-1816.221,0.00017454,2]
[403042193,1769095840352,-500.0,0.00017454,2]
[403042195,1769095840362,-505.56624435,0.00017454,2]
[403042197,1769095840371,-500.0,0.00017454,2]
[403042199,1769095840380,-500.0,0.00017454,2]
[403042201,1769095840390,-500.0,0.00017454,2]
[403042203,1769095840400,-500.0,0.00017454,2]
[403042205,1769095840409,-500.0,0.00017454,2]
[403042206,1769095840418,-500.0,0.00017454,2]
[403042208,1769095840428,-500.0,0.00017454,2]
[403042210,1769095840437,-500.0,0.00017454,2]
[403042212,1769095840447,-500.0,0.00017454,2]
[403042214,1769095840456,-500.0,0.00017454,2]
[403042216,1769095840466,-500.0,0.00017454,2]
[403042218,1769095840475,-500.0,0.00017454,2]
[403042220,1769095840485,-500.0,0.00017454,2]
[403042222,1769095840494,-500.0,0.00017454,2]
[403042224,1769095840504,-500.0,0.00017454,2]
[403042226,1769095840514,-500.0,0.00017454,2]
[403042228,1769095840523,-500.0,0.00017454,2]
[403042230,1769095840533,-500.0,0.00017454,2]
[403042232,1769095840543,-500.0,0.00017454,2]
[403042234,1769095840553,-500.0,0.00017454,2]
[403042236,1769095840566,-500.0,0.00017454,2]
[403042238,1769095840575,-500.0,0.00017454,2]
[403042240,1769095840585,-500.0,0.00017454,2]
[403042242,1769095840594,-500.0,0.00017454,2]
[403042244,1769095840605,-500.0,0.00017454,2]
[403042246,1769095840614,-500.0,0.00017454,2]
[403042248,1769095840623,-500.0,0.00017454,2]
[403042250,1769095840634,-500.0,0.00017454,2]
[403042252,1769095840643,-500.0,0.00017454,2]
[403042254,1769095840653,-500.0,0.00017454,2]
[403042256,1769095840662,-500.0,0.00017454,2]
[403042258,1769095840672,-500.0,0.00017454,2]
[403042260,1769095840681,-500.0,0.00017454,2]
[403042262,1769095840690,-500.0,0.00017454,2]
[403042264,1769095840703,-500.0,0.00017454,2]
[403042266,1769095840712,-500.0,0.00017454,2]
[403042268,1769095840722,-1542.22,0.00017455,2]
[403042270,1769095840731,-1542.22,0.00017455,2]
[403042272,1769095840740,-1542.22,0.00017455,2]
[403042274,1769095840750,-1548.02,0.00017455,2]
[403042276,1769095840760,-457.0,0.00017491,2]
[403042278,1769095840769,-3000.0,0.000175,3]
[403042280,1769095840778,-457.0,0.00017519,2]
[403042282,1769095840787,-2664.65030768,0.0001753,2]
[403042284,1769095840797,-457.0,0.00017662,2]
[403042286,1769095840806,-502.71264906,0.00017673,2]
[403042288,1769095840815,-500.0,0.00017673,2]
[403042290,1769095840823,-502.14924214,0.00017673,2]
[403042292,1769095840832,-500.0,0.00017673,2]
[403042294,1769095840841,-457.0,0.00017691,2]
[403042296,1769095840850,-457.0,0.00017695,2]
[403042297,1769095840859,-457.0,0.00017702,2]
[403042300,1769095840869,-166.66,0.0001771,2]
[403042301,1769095840878,-457.0,0.00017832,2]
[403042303,1769095840887,-1000.32393849,0.0001786,2]
[403042305,1769095840896,-209.89891588,0.000179,2]
[403042307,1769095840905,-194.30819738,0.000179,3]
[403042310,1769095840916,-2095.3296833,0.000179,2]
[403042311,1769095840925,-202.80346106,0.000179,2]
[403042313,1769095840935,-316.30803092,0.000179,2]
[403042315,1769095840944,-2004.71546728,0.000179,2]
[403042317,1769095840953,-457.0,0.00017918,2]
[403042320,1769095840963,-300.0,0.00017963,2]
[403042321,1769095840972,-250.0,0.00017971,2]
[403042323,1769095840982,-150.0,0.00017973,2]
[403042325,1769095840991,-150.0,0.00017973,2]
[403042327,1769095841000,-531.87519815,0.0001799,2]
[403042329,1769095841010,-531.87519815,0.0001799,2]
[403042331,1769095841020,-531.87519815,0.0001799,2]
[403042333,1769095841029,-300.0,0.00017999,2]
[403042335,1769095841040,-6003570.42541418,0.00018,2]
[403042338,1769095841052,-453.91222756,0.00018,2]
[403042340,1769095841067,-1782.72657092,0.00018,2]
[403042343,1769095841084,-35514.90000001,0.00018,2]
[403042344,1769095841095,-17018.18277667,0.00018,2]
[403042345,1769095841119,-501.14614625,0.00018,2]
[403042352,1769095843052,-418.26137487,0.00018,2]
[403042370,1769095843800,-13541.50215,0.00018,2]
[403042371,1769095843894,-8662.13153589,0.00018,2]
[403042372,1769095843905,-3848.68264906,0.00018,2]
[403042380,1769095846206,-226.32576919,0.00018,2]
[403042381,1769095846218,-776.61963,0.00018,2]
[403042382,1769095846244,-604.20000663,0.00018,2]
[403042383,1769095846255,-334.49590725,0.00018,2]
[403042384,1769095846266,-17711.0,0.00018,2]
[403042385,1769095846277,-1083.29540718,0.00018,2]
[403042386,1769095846343,-2046.8,0.00018,2]
[403042387,1769095944155,192.0,0.000226,120]
[403042405,1769096767604,425.29815852,0.00015648,120]
[403042414,1769097032174,-166.66,0.00015649,2]
[403042415,1769097032183,-166.66,0.00015978,2]
[403042416,1769097032195,-161.25,0.00016211,2]
[403042417,1769097032204,-166.66,0.00016308,2]
[403042418,1769097032213,-213.8,0.00016437,3]
[403042419,1769097032222,-300.0,0.00016471,2]
[403042420,1769097032231,-1200.0,0.00016471,2]
[403042421,1769097032240,-300.0,0.00016471,2]
[403042422,1769097032249,-8305.36594878,0.00016472,2]
[403042423,1769097032261,-11314.90405122,0.00016472,2]
[403042424,1769097032270,-151.0,0.0001648,2]
[403042425,1769097032280,-4554.0788869,0.00016527,2]
[403042426,1769097032290,-1087.16696227,0.00016537,2]
[403042427,1769097032309,-500.0,0.00016537,2]
[403042428,1769097032320,-115056.85586528,0.00016537,2]
[403042429,1769097032390,-500.0,0.00016536,2]
[403042430,1769097032400,-10.11481069,0.00016536,2]
[403042431,1769097032412,-294.43072842,0.00016536,2]
[403042432,1769097032421,-1205.56927158,0.00016537,2]
[403042433,1769097032517,-500.0,0.00016536,2]
[403042434,1769097032526,-197.33435166,0.00016537,2]
[403042435,1769097032537,-2932.92904728,0.00016537,2]
[403042608,1769097039237,-420.54855182,0.00016536,2]
[403042609,1769097039246,-1038.9912616,0.00016537,2]
[403042610,1769097039258,-956.24,0.00016537,2]
[403042611,1769097039336,-393.98097866,0.00016537,2]
[403042612,1769097039348,-876630.93226167,0.00016537,2]
[403042613,1769097039357,-166.66,0.00016637,2]
[403042614,1769097039367,-164.8,0.00016712,2]
[403042615,1769097039376,-200.0,0.000168,6]
[403042616,1769097039386,-500.0,0.000169,6]
[403042617,1769097039395,-166.66,0.00016966,2]
[403042618,1769097039405,-200.0,0.0001699,2]
[403042619,1769097039414,-2020.70239907,0.00016996,2]
[403042620,1769097039424,-3631.05713481,0.000171,2]
[403042621,1769097039434,-550.0,0.00017111,2]
[403042622,1769097039443,-465.46,0.00017111,2]
[403042623,1769097039453,-207.54661423,0.00017111,2]
[403042624,1769097039462,-337.21220376,0.00017111,2]
[403042625,1769097039471,-500.0,0.00017111,2]
[403042626,1769097039481,-468.89314398,0.00017111,2]
[403042627,1769097039490,-500.0,0.00017111,2]
[403042628,1769097039499,-500.0,0.00017111,2]
[403042629,1769097039508,-500.0,0.00017111,2]
[403042630,1769097039518,-500.0,0.00017111,2]
[403042631,1769097039527,-500.0,0.00017111,2]
[403042632,1769097039536,-500.0,0.00017111,2]
[403042633,1769097039546,-500.0,0.00017111,2]
[403042634,1769097039555,-500.0,0.00017111,2]
[403042635,1769097039565,-500.0,0.00017111,2]
[403042636,1769097039574,-500.0,0.00017111,2]
[403042637,1769097039584,-500.0,0.00017111,2]
[403042638,1769097039593,-500.0,0.00017111,2]
[403042639,1769097039603,-398.10249656,0.00017111,2]
[403042640,1769097039612,-500.0,0.00017111,2]
[403042641,1769097039622,-500.0,0.00017111,2]
[403042642,1769097039631,-500.0,0.00017111,2]
[403042654,1769097039913,-500.0,0.00017111,2]
[403042656,1769097039930,-500.0,0.00017111,2]
[403042658,1769097039939,-500.0,0.00017111,2]
[403042660,1769097039950,-500.0,0.00017111,2]
[403042662,1769097039959,-500.0,0.00017111,2]
[403042664,1769097039968,-500.0,0.00017111,2]
[403042666,1769097039977,-500.0,0.00017111,2]
[403042668,1769097039986,-500.0,0.00017111,2]
[403042671,1769097039995,-500.0,0.00017111,2]
[403042672,1769097040005,-500.0,0.00017111,2]
[403042674,1769097040014,-500.0,0.00017111,2]
[403042677,1769097040023,-500.0,0.00017111,2]
[403042678,1769097040032,-500.0,0.00017111,2]
[403042681,1769097040042,-500.0,0.00017111,2]
[403042682,1769097040053,-500.0,0.00017111,2]
[403042685,1769097040062,-500.0,0.00017111,2]
[403042686,1769097040071,-500.0,0.00017111,2]
[403042689,1769097040081,-500.0,0.00017111,2]
[403042691,1769097040092,-500.0,0.00017111,2]
[403042693,1769097040102,-500.0,0.00017111,2]
[403042695,1769097040111,-500.0,0.00017111,2]
[403042697,1769097040125,-500.0,0.00017111,2]
[403042700,1769097040135,-500.0,0.00017111,2]
[403042702,1769097040144,-500.0,0.00017111,2]
[403042704,1769097040155,-500.0,0.00017111,2]
[403042706,1769097040164,-500.0,0.00017111,2]
[403042708,1769097040174,-500.0,0.00017111,2]
[403042710,1769097040183,-500.0,0.00017111,2]
[403042711,1769097040194,-500.0,0.00017111,2]
[403042713,1769097040204,-500.0,0.00017111,2]
[403042717,1769097040214,-500.0,0.00017111,2]
[403042719,1769097040223,-500.0,0.00017111,2]
[403042721,1769097040232,-500.0,0.00017111,2]
[403042723,1769097040241,-500.0,0.00017111,2]
[403042725,1769097040250,-500.0,0.00017111,2]
[403042727,1769097040260,-500.0,0.00017111,2]
[403042729,1769097040269,-500.0,0.00017111,2]
[403042731,1769097040278,-500.0,0.00017111,2]
[403042734,1769097040287,-500.0,0.00017111,2]
[403042736,1769097040296,-500.0,0.00017111,2]
[403042738,1769097040306,-500.0,0.00017111,2]
[403042740,1769097040315,-500.0,0.00017111,2]
[403042742,1769097040324,-500.0,0.00017111,2]
[403042744,1769097040333,-500.0,0.00017111,2]
[403042746,1769097040343,-500.0,0.00017111,2]
[403042748,1769097040352,-500.0,0.00017111,2]
[403042750,1769097040361,-500.0,0.00017111,2]
[403042752,1769097040370,-500.0,0.00017111,2]
[403042754,1769097040380,-500.0,0.00017111,2]
[403042756,1769097040389,-500.0,0.00017111,2]
[403042758,1769097040398,-500.0,0.00017111,2]
[403042760,1769097040409,-500.0,0.00017111,2]
[403042762,1769097040418,-500.0,0.00017111,2]
[403042764,1769097040427,-500.0,0.00017111,2]
[403042766,1769097040437,-500.0,0.00017111,2]
[403042768,1769097040446,-500.0,0.00017111,2]
[403042770,1769097040455,-500.0,0.00017111,2]
[403042772,1769097040464,-500.0,0.00017111,2]
[403042774,1769097040475,-500.0,0.00017111,2]
[403042776,1769097040484,-500.0,0.00017111,2]
[403042778,1769097040493,-500.0,0.00017111,2]
[403042780,1769097040503,-500.0,0.00017111,2]
[403042782,1769097040512,-500.0,0.00017111,2]
[403042784,1769097040522,-500.0,0.00017111,2]
[403042786,1769097040531,-500.0,0.00017111,2]
[403042788,1769097040540,-500.0,0.00017111,2]
[403042790,1769097040550,-500.0,0.00017111,2]
[403042791,1769097040559,-500.0,0.00017111,2]
[403042793,1769097040569,-500.0,0.00017111,2]
[403042796,1769097040579,-196.07956001,0.00017111,2]
[403042798,1769097040588,-500.0,0.00017111,2]
[403042800,1769097040598,-500.0,0.00017111,2]
[403042802,1769097040607,-500.0,0.00017111,2]
[403042804,1769097040616,-500.0,0.00017111,2]
[403042806,1769097040626,-500.0,0.00017111,2]
[403042807,1769097040635,-500.0,0.00017111,2]
[403042810,1769097040644,-500.0,0.00017111,2]
[403042812,1769097040654,-353.5068563,0.00017111,2]
[403042814,1769097040664,-1907.032,0.00017114,2]
[403042816,1769097040673,-354.88450973,0.00017115,2]
[403042818,1769097040682,-1963.25702751,0.00017115,2]
[403042820,1769097040691,-27651.69504904,0.00017115,2]
[403042822,1769097040700,-5268.17964723,0.00017115,2]
[403042824,1769097040710,-1000.0,0.00017115,2]
[403042826,1769097040719,-2070.6252,0.00017115,2]
[403042828,1769097040729,-468.25,0.00017178,2]
[403042830,1769097040738,-468.25,0.00017178,2]
[403042832,1769097040748,-150.0,0.00017178,2]
[403042834,1769097040757,-333.42,0.00017178,2]
[403042835,1769097040766,-150.0,0.00017178,2]
[403042837,1769097040776,-558.29,0.00017178,2]
[403042839,1769097040785,-343.51,0.00017178,2]
[403042841,1769097040794,-558.29,0.00017178,2]
[403042843,1769097040803,-936.5,0.00017178,2]
[403042845,1769097040812,-558.29,0.00017178,2]
[403042847,1769097040822,-468.25,0.00017178,2]
[403042849,1769097040832,-200.0,0.00017205,2]
[403042851,1769097040842,-200.0,0.00017205,2]
[403042853,1769097040851,-500.0,0.00017205,2]
[403042855,1769097040860,-500.0,0.00017205,2]
[403042857,1769097040870,-500.0,0.00017205,2]
[403042859,1769097040879,-500.0,0.00017205,2]
[403042861,1769097040888,-500.0,0.00017205,2]
[403042863,1769097040897,-500.0,0.00017205,2]
[403042865,1769097040906,-500.0,0.00017205,2]
[403042868,1769097040915,-151.0,0.00017205,2]
[403042871,1769097040925,-151.0,0.00017205,2]
[403042874,1769097040934,-151.0,0.00017205,2]
[403042876,1769097040943,-151.0,0.00017205,2]
[403042878,1769097040952,-151.0,0.00017205,2]
[403042880,1769097040961,-151.0,0.00017205,2]
[403042882,1769097040971,-151.0,0.00017205,2]
[403042884,1769097040980,-500.0,0.00017205,2]
[403042886,1769097040989,-151.0,0.00017205,2]
[403042888,1769097040999,-500.0,0.00017205,2]
[403042890,1769097041008,-151.0,0.00017205,2]
[403042892,1769097041018,-500.0,0.00017205,2]
[403042894,1769097041027,-151.0,0.00017205,2]
[403042896,1769097041037,-500.0,0.00017205,2]
[403042898,1769097041046,-151.0,0.00017205,2]
[403042900,1769097041055,-500.0,0.00017205,2]
[403042902,1769097041065,-151.0,0.00017205,2]
[403042904,1769097041074,-415.0,0.00017205,2]
[403042906,1769097041083,-300.0,0.00017213,2]
[403042908,1769097041095,-600.0,0.00017213,2]
[403042910,1769097041105,-195.0,0.00017213,2]
[403042912,1769097041115,-1097.50771,0.00017213,2]
[403042914,1769097041127,-207.42263419,0.00017214,2]
[403042916,1769097041136,-500.0,0.00017214,2]
[403042918,1769097041145,-500.58,0.00017214,2]
[403042920,1769097041155,-500.58,0.00017214,2]
[403042922,1769097041165,-500.58,0.00017214,2]
[403042924,1769097041175,-500.58,0.00017214,2]
[403042926,1769097041184,-200.0,0.00017272,2]
[403042928,1769097041196,-166.66,0.00017296,2]
[403042930,1769097041205,-1426.9227,0.00017355,2]
[403042932,1769097041215,-465.46,0.00017385,2]
[403042934,1769097041224,-503.44696293,0.00017409,2]
[403042936,1769097041234,-485.15972299,0.00017454,2]
[403042938,1769097041243,-500.0,0.00017454,2]
[403042940,1769097041252,-500.0,0.00017454,2]
[403042942,1769097041261,-500.0,0.00017454,2]
[403042944,1769097041272,-500.0,0.00017454,2]
[403042946,1769097041281,-500.0,0.00017454,2]
[403042948,1769097041291,-465.46,0.00017659,2]
[403042950,1769097041300,-500.0,0.00017673,2]
[403042952,1769097041309,-150.0,0.00017699,2]
[403042954,1769097041318,-500.0,0.00017699,2]
[403042956,1769097041329,-150.0,0.00017699,2]
[403042958,1769097041339,-150.0,0.00017699,2]
[403042960,1769097041348,-500.0,0.00017699,2]
[403042962,1769097041357,-250.0,0.00017699,2]
[403042965,1769097041368,-152.12544444,0.00017699,2]
[403042966,1769097041377,-500.0,0.00017699,2]
[403042969,1769097041386,-150.0,0.00017699,2]
[403042970,1769097041395,-181.0,0.00017699,2]
[403042973,1769097041406,-500.0,0.00017699,2]
[403042975,1769097041415,-150.0,0.00017699,2]
[403042976,1769097041424,-150.0,0.00017699,2]
[403042978,1769097041433,-150.0,0.00017699,2]
[403042980,1769097041442,-150.0,0.00017699,2]
[403042982,1769097041451,-500.0,0.00017699,2]
[403042984,1769097041460,-500.0,0.00017699,2]
[403042986,1769097041469,-150.0,0.00017699,2]
[403042988,1769097041478,-800.0,0.000177,6]
[403042990,1769097041487,-150.0,0.00017754,2]
[403042992,1769097041496,-500.0,0.00017754,2]
[403042994,1769097041505,-150.0,0.00017754,2]
[403042996,1769097041513,-500.0,0.00017754,2]
[403042998,1769097041522,-500.0,0.00017754,2]
[403043000,1769097041531,-150.0,0.00017754,2]
[403043002,1769097041540,-500.0,0.00017754,2]
[403043004,1769097041550,-150.0,0.00017754,2]
[403043006,1769097041559,-150.0,0.00017754,2]
[403043008,1769097041568,-500.0,0.00017754,2]
[403043010,1769097041578,-150.0,0.00017754,2]
[403043012,1769097041588,-500.0,0.00017754,2]
[403043014,1769097041598,-1000.0,0.000178,6]
[403043016,1769097041607,-150.0,0.00017808,2]
[403043018,1769097041616,-150.0,0.00017809,2]
[403043020,1769097041625,-207.51653588,0.00017809,2]
[403043022,1769097041634,-150.0,0.00017809,2]
[403043024,1769097041643,-500.0,0.00017809,2]